lending/lending_fUSD_20240112
["ID","MTS","AMOUNT","RATE_DAILY","PERIOD"]
[311291856,1705030238226,-1000.0,0.00029245,2]
[311291857,1705030238238,-250.0,0.00029521,2]
[311291858,1705030238250,-500.47055652,0.00029601,2]
[311291859,1705030238262,-150.0,0.00029625,2]
[311291860,1705030238274,-163.19,0.00029847,2]
[311291861,1705030238286,-289.26,0.0003,2]
[311291862,1705030238299,-155.0,0.0003,2]
[311291863,1705030238311,-10000.0,0.00030137,2]
[311291864,1705030238323,-500.47055652,0.00030155,2]
[311291865,1705030238335,-500.47055652,0.00030709,2]
[311291866,1705030238347,-151.40112,0.00030788,2]
[311291867,1705030238359,-151.40112,0.00030788,2]
[311291868,1705030238371,-151.40112,0.00030788,2]
[311291869,1705030238383,-151.40112,0.00030788,2]
[311291870,1705030238395,-151.40112,0.00030788,2]
[311291871,1705030238407,-151.40112,0.00030788,2]
[311291872,1705030238419,-151.40112,0.00030788,2]
[311291873,1705030238431,-151.40112,0.00030788,2]
[311291874,1705030238443,-151.40112,0.00030788,2]
[311291875,1705030238457,-151.40112,0.00030788,2]
[311291876,1705030238470,-151.40112,0.00030788,2]
[311291877,1705030238483,-151.40112,0.00030788,2]
[311291878,1705030238495,-216.40112,0.00030788,2]
[311291879,1705030238507,-151.40112,0.00030888,2]
[311291880,1705030238520,-151.40112,0.00030888,2]
[311291881,1705030238532,-151.40112,0.00030888,2]
[311291882,1705030238544,-151.40112,0.00030888,2]
[311291883,1705030238556,-151.40112,0.00030888,2]
[311291884,1705030238568,-151.40112,0.00030888,2]
[311291885,1705030238579,-151.40112,0.00030888,2]
[311291886,1705030238590,-151.40112,0.00030888,2]
[311291887,1705030238602,-151.40112,0.00030988,2]
[311291888,1705030238614,-151.40112,0.00030988,2]
[311291889,1705030238626,-151.40112,0.00030988,2]
[311291890,1705030238638,-151.40112,0.00030988,2]
[311291891,1705030238650,-151.40112,0.00030988,2]
[311291892,1705030238662,-151.40112,0.00030988,2]
[311291893,1705030238674,-151.40112,0.00030988,2]
[311291894,1705030238686,-151.40112,0.00030988,2]
[311291895,1705030238701,-151.40112,0.00030988,2]
[311291896,1705030238714,-151.40112,0.00030988,2]
[311291897,1705030238727,-151.40112,0.00030988,2]
[311291898,1705030238739,-151.40112,0.00030988,2]
[311291899,1705030238751,-151.40112,0.00030988,2]
[311291900,1705030238764,-287.35,0.00031238,2]
[311291901,1705030238778,-153.84,0.00031353,2]
[311291902,1705030238790,-500.0,0.000315,2]
[311291903,1705030238802,-165.34,0.00031644,2]
[311291904,1705030238814,-432.3617,0.000319,2]
[311291905,1705030238826,-716.51993178,0.000319,4]
[311291906,1705030238838,-1007.5265,0.000319,2]
[311291907,1705030238851,-536.3493,0.000319,2]
[311291908,1705030238864,-544.93498677,0.000319,5]
[311291909,1705030238875,-500.0,0.00031942,2]
[311291910,1705030238888,-278.88399582,0.00031998,4]
[311291911,1705030238900,-284.33166591,0.00031998,4]
[311291912,1705030238912,-682.73717597,0.00031999,4]
[311291913,1705030238925,-173597.82230009,0.00032,2]
[311291914,1705030238937,-13056.05779594,0.00032,4]
[311291915,1705030238951,-16372.2055363,0.00032033,3]
[311291916,1705030238964,-849.013,0.00032043,2]
[311291917,1705030238977,-318.0,0.00032043,2]
[311291918,1705030238988,-2901.0,0.00032043,2]
[311291919,1705030238998,-2270.0,0.00032043,2]
[311291920,1705030239007,-19678.0,0.00032043,2]
[311291921,1705030239016,-945.0,0.00032043,2]
[311291922,1705030239026,-835.0,0.00032043,2]
[311291923,1705030239035,-1028.0,0.00032043,2]
[311291924,1705030239044,-173.127,0.00032043,2]
[311291925,1705030239054,-153.84,0.00032303,2]
[311291926,1705030239063,-158.9,0.00032312,2]
[311291927,1705030239073,-544.93498671,0.00032614,6]
[311291928,1705030239083,-158.9,0.00032635,2]
[311291929,1705030239092,-699.96,0.00032877,15]
[311291930,1705030239101,-245.04008814,0.00032898,2]
[311291931,1705030239110,-1000.0,0.000329,2]
[311291932,1705030239388,-159.87,0.00032919,2]
[311291933,1705030239418,-158.9,0.00032958,2]
[311291934,1705030239432,-875.0,0.00033,2]
[311291935,1705030239441,-407.13804897,0.00033,2]
[311291936,1705030239451,-407.13804897,0.00033,2]
[311291937,1705030239461,-200.0,0.00033133,10]
[311291938,1705030239471,-800.0,0.00033133,5]
[311291939,1705030239480,-153.84,0.00033253,2]
[311291940,1705030239489,-158.9,0.00033281,2]
[311291941,1705030239498,-544.93498671,0.00033329,6]
[311291942,1705030239507,-176.45988349,0.00033388,4]
[311291943,1705030239516,-225.77778981,0.00033389,4]
[311291944,1705030239526,-287.35,0.00033502,2]
[311291945,1705030239536,-158.9,0.00033604,2]
[311291946,1705030239545,-8186.10276817,0.00033685,6]
[311291947,1705030239554,-7751.7099,0.00033695,2]
[311291948,1705030239564,-155.39391606,0.00033797,4]
[311291949,1705030239573,-2403.78380449,0.00033798,4]
[311291950,1705030239583,-1751.40751988,0.00033799,4]
[311291951,1705030239592,-158.9,0.00033927,2]
[311291952,1705030239602,-1000.0,0.00034,4]
[311291953,1705030239612,-201.68969247,0.00034,2]
[311291954,1705030239622,-544.93498671,0.00034043,6]
[311291955,1705030239631,-206.0,0.00034115,2]
[311291956,1705030239641,-153.84,0.00034203,2]
[311291957,1705030239650,-158.9,0.0003425,2]
[311291958,1705030239659,-258.43,0.00034521,2]
[311291959,1705030239669,-158.9,0.00034573,2]
[311291960,1705030239679,-24558.3083045,0.0003464,7]
[311291961,1705030239688,-180.0,0.00034658,2]
[311291962,1705030239697,-544.93498671,0.00034757,7]
[311291963,1705030239708,-158.9,0.00034897,2]
[311291964,1705030239718,-151.35039787,0.000349,2]
[311291965,1705030239727,-229210.877509,0.0003499,8]
[311291966,1705030239736,-150.0,0.00035,5]
[311291967,1705030239745,-255.47708732,0.00035,4]
[311291968,1705030239754,-1000.0,0.00035,2]
[311291969,1705030239764,-631.61565151,0.00035,10]
[311291970,1705030239773,-1804.81442942,0.00035,4]
[311291971,1705030239783,-288323.02257543,0.00035,2]
[311291972,1705030239796,-400581.60745949,0.00035,2]
[311291973,1705030239805,-6847.95,0.00035,2]
[311291974,1705030239816,-8750.0,0.00035,2]
[311291975,1705030239825,-8750.0,0.00035,2]
[311291976,1705030239835,-2500.0,0.00035,2]
[311291977,1705030239845,-8749.99,0.00035,2]
[311291978,1705030239855,-8749.99,0.00035,2]
[311291979,1705030239864,-150.0,0.00035,8]
[311291980,1705030239873,-8749.99,0.00035,2]
[311291981,1705030239882,-8750.0,0.00035,2]
[311291982,1705030239891,-16503.6555632,0.00035,2]
[311291983,1705030239900,-318.0,0.00035043,2]
[311291984,1705030239909,-2901.0,0.00035043,2]
[311291985,1705030239919,-2270.0,0.00035043,2]
[311291986,1705030239928,-19678.0,0.00035043,2]
[311291987,1705030239937,-945.0,0.00035043,2]
[311291988,1705030239946,-1028.0,0.00035043,2]
[311291989,1705030239958,-8750.0,0.00035088,2]
[311291990,1705030239969,-8750.0,0.00035088,2]
[311291991,1705030239979,-8750.0,0.00035088,2]
[311291992,1705030239989,-153.84,0.00035153,2]
[311291993,1705030239998,-8750.0,0.00035175,2]
[311291994,1705030240007,-8750.0,0.00035175,2]
[311291995,1705030240017,-158.9,0.0003522,2]
[311291996,1705030240026,-8750.0,0.00035263,2]
[311291997,1705030240035,-8750.0,0.0003535,2]
[311291998,1705030240044,-8750.0,0.00035438,2]
[311291999,1705030240053,-544.93498671,0.00035471,7]
[311292000,1705030240062,-8750.0,0.00035525,2]
[311292001,1705030240071,-158.9,0.00035543,2]
[311292002,1705030240081,-750.0,0.000356,2]
[311292003,1705030240090,-2558.89849751,0.00035613,2]
[311292004,1705030240102,-643.1294748,0.00035613,2]
[311292005,1705030240136,-4999.15470271,0.00035613,2]
[311292006,1705030240159,-548.81732498,0.00035613,2]
[311292007,1705030240168,-5028.34,0.000357,2]
[311292008,1705030240177,-287.35,0.00035766,2]
[311292009,1705030240186,-258.43,0.00035798,2]
[311292010,1705030240196,-520.63008357,0.00036,4]
[311292011,1705030240207,-166.43531112,0.00036,3]
[311292012,1705030240216,-1754.3707625,0.00036,2]
[311292013,1705030240225,-153.84,0.00036103,2]
[311292015,1705030240234,-544.93498671,0.00036186,7]
[311292016,1705030240243,-206.0,0.00036272,6]
[311292017,1705030240253,-151.35039787,0.00036339,2]
[311292018,1705030240262,-3229.97399746,0.000365,7]
[311292019,1705030240271,-1000.0,0.00036556,2]
[311292020,1705030240280,-14.17545495,0.000366,3]
[311292021,1705030240292,-34183.09207096,0.000366,3]
[311292022,1705030240301,-699.96,0.00036613,15]
[311292023,1705030240311,-189.96501557,0.00036626,4]
[311292024,1705030240320,-209.48583773,0.00036642,9]
[311292026,1705030240329,-500.0,0.00036703,2]
[311292027,1705030240338,-24839.09396493,0.000368,2]
[311292028,1705030240350,-4906.23264509,0.000368,2]
[311292029,1705030240365,-4756.58748998,0.000368,2]
[311292030,1705030240374,-20100.64757477,0.000368,2]
[311292031,1705030240389,-529.05901152,0.000368,2]
[311292032,1705030240418,-920.1,0.000368,2]
[311292033,1705030240430,-5065.54090641,0.000368,2]
[311292034,1705030240773,-250.0,0.00029507,2]
[311292035,1705030240782,-22.65594049,0.00032043,2]
[311292036,1705030241070,-299.1128838,0.00032043,2]
[311292037,1705030241183,-1609.23117571,0.00032043,2]
[311292038,1705030241193,-66.24385761,0.00035043,2]
[311292039,1705030241209,-1864.75614239,0.00035043,2]
[311292040,1705030241218,-2154.33513723,0.000368,2]
[311292041,1705030241230,-2690.08998331,0.000368,2]
[311292042,1705030241280,-7415.42252626,0.000368,2]
[311292043,1705030241291,-8947.21879473,0.000368,2]
[311292044,1705030241302,-8943.78386462,0.000368,2]
[311292045,1705030241313,-9077.54866152,0.000368,2]
[311292046,1705030241325,-8943.84023489,0.000368,2]
[311292056,1705030246013,-153.0,0.00035,5]
[311292057,1705030246023,-199.4101961,0.00036089,2]
[311292058,1705030246033,-29.48736675,0.000368,2]
[311292059,1705030246295,-16123.45,0.000368,2]
[311292089,1705031234115,-155.0,0.00024885,2]
[311292090,1705031234135,-244.64133608,0.00024886,2]
[311292091,1705031234156,-384.30901791,0.0002489,2]
[311292092,1705031234174,-174.23876874,0.00024981,2]
[311292093,1705031234194,-737.17,0.00024981,2]
[311292094,1705031234213,-549.31496894,0.00024984,2]
[311292103,1705031432091,-162.42503106,0.00024984,2]
[311292104,1705031432101,-715.57,0.00024988,2]
[311292105,1705031432111,-726.92,0.00024989,2]
[311292106,1705031432120,-722.04,0.0002499,2]
[311292107,1705031432132,-710.64,0.0002499,2]
[311292108,1705031432142,-720.69,0.00024991,2]
[311292109,1705031432153,-722.02,0.00024992,2]
[311292110,1705031432162,-150.0,0.00024992,2]
[311292111,1705031432173,-722.21,0.00024993,2]
[311292112,1705031432182,-499.99,0.00024993,2]
[311292113,1705031432191,-6821.04,0.00024993,2]
[311292114,1705031432201,-9835.16,0.00024993,2]
[311292115,1705031432210,-718.55,0.00024993,2]
[311292116,1705031432220,-737.68,0.00024993,2]
[311292117,1705031432229,-712.22,0.00024995,2]
[311292118,1705031432239,-726.83,0.00024996,2]
[311292119,1705031432248,-723.38,0.00024996,2]
[311292120,1705031432257,-738.12,0.00024999,2]
[311292121,1705031432268,-725.88,0.00025,2]
[311292122,1705031432277,-5565.92,0.00025,2]
[311292123,1705031432287,-732.77,0.00025,2]
[311292124,1705031432296,-550.0,0.00025,3]
[311292125,1705031432306,-251.07,0.00025385,2]
[311292126,1705031432315,-384.30901785,0.00025517,2]
[311292127,1705031432324,-384.30901785,0.00026143,2]
[311292128,1705031432333,-731.91,0.00026375,2]
[311292129,1705031432342,-721.25,0.00026375,2]
[311292130,1705031432352,-4346.70860475,0.00026375,2]
[311292131,1705031432361,-719.09,0.00026376,2]
[311292132,1705031432371,-732.17,0.00026377,2]
[311292133,1705031432381,-730.07,0.00026378,2]
[311292134,1705031432390,-711.84,0.00026378,2]
[311292135,1705031432399,-384.30901785,0.0002677,2]
[311292136,1705031432408,-600.0,0.00027,3]
[311292137,1705031432418,-194.39,0.00027253,2]
[311292138,1705031432427,-158.9,0.00027303,2]
[311292139,1705031432436,-250.0,0.00027303,2]
[311292140,1705031432445,-384.30901785,0.00027397,2]
[311292141,1705031432454,-250.0,0.000274,2]
[311292142,1705031432464,-1033.12,0.00027421,2]
[311292143,1705031432473,-2000.0,0.00027473,2]
[311292144,1705031432482,-210.0,0.00027491,2]
[311292145,1705031432491,-154.95,0.00027535,2]
[311292146,1705031432501,-1184.18,0.00027538,2]
[311292147,1705031432511,-500.0,0.00027606,2]
[311292148,1705031432519,-165.58,0.00027614,2]
[311292149,1705031432528,-251.07,0.00027649,2]
[311292150,1705031432537,-154.95,0.00027695,2]
[311292151,1705031432546,-250.0,0.00027709,2]
[311292152,1705031432555,-150.0,0.00027853,2]
[311292153,1705031432565,-154.95,0.00027854,2]
[311292154,1705031432574,-2571.9,0.00027922,2]
[311292155,1705031432584,-154.95,0.00028014,2]
[311292156,1705031432593,-384.30901785,0.00028023,2]
[311292157,1705031432603,-154.95,0.00028173,2]
[311292158,1705031432612,-154.95,0.00028333,2]
[311292159,1705031432621,-154.95,0.00028492,2]
[311292160,1705031432630,-384.30901785,0.0002865,2]
[311292161,1705031432640,-154.95,0.00028651,2]
[311292163,1705031432649,-154.95,0.00028811,2]
[311292165,1705031432658,-154.95,0.0002897,2]
[311292167,1705031432667,-650.0,0.00029,3]
[311292169,1705031432677,-4115.22,0.00029115,2]
[311292171,1705031432686,-384.30901785,0.00029276,2]
[311292173,1705031432695,-155.43,0.00029499,2]
[311292175,1705031432705,-1000.0,0.00029722,2]
[311292177,1705031432714,-384.30901785,0.00029903,2]
[311292179,1705031432723,-251.07,0.00029913,2]
[311292180,1705031432733,-2318.28,0.00029972,2]
[311292181,1705031432742,-245.88,0.0003,2]
[311292182,1705031432751,-155.0,0.00030031,2]
[311292183,1705031432762,-327.22655027,0.00030032,4]
[311292184,1705031432771,-158.9,0.00030033,2]
[311292185,1705031432781,-2055.66,0.00030137,2]
[311292186,1705031432790,-153.84,0.00030137,2]
[311292187,1705031432799,-207.0,0.0003024,2]
[311292188,1705031432809,-384.30901785,0.0003053,2]
[311292189,1705031432818,-700.0,0.00031,3]
[311292190,1705031432828,-153.84,0.0003105,2]
[311292191,1705031432837,-384.30901785,0.00031156,2]
[311292192,1705031432846,-260.20488157,0.00031363,4]
[311292193,1705031432856,-500.0,0.000315,2]
[311292194,1705031432865,-159.87,0.00031507,2]
[311292195,1705031432874,-384.30901785,0.00031783,2]
[311292196,1705031432884,-30085.4724,0.00031799,2]
[311292197,1705031432893,-520.01850678,0.000318,2]
[311292198,1705031432902,-278.88399582,0.00031897,4]
[311292199,1705031432912,-2244.66767878,0.00031897,4]
[311292200,1705031432922,-362.17886216,0.00031897,4]
[311292201,1705031432931,-155.0,0.00031897,4]
[311292202,1705031432941,-169.38387743,0.00031898,4]
[311292203,1705031432950,-91422.74025762,0.00031899,4]
[311292204,1705031432963,-560.17973872,0.00031899,4]
[311292205,1705031432973,-1134.12005827,0.000319,2]
[311292206,1705031432989,-421.07761078,0.000319,2]
[311292207,1705031433007,-13215.17677958,0.000319,2]
[311292208,1705031433024,-3696.08,0.000319,2]
[311292209,1705031433036,-708.92005137,0.000319,2]
[311292210,1705031433046,-153.84,0.00031963,2]
[311292211,1705031433057,-124.62226494,0.00032023,2]
[311292212,1705031433073,-735.1422141,0.00032023,2]
[311292213,1705031433103,-140.23552096,0.00032023,2]
[311292214,1705031433113,-2500.0,0.00032023,2]
[311292215,1705031433123,-10705.89694998,0.00032123,2]
[311292216,1705031433135,-1058.40874479,0.00032123,2]
[311292217,1705031433150,-5123.51393727,0.00032123,2]
[311292218,1705031433181,-1249.9999988,0.00032123,2]
[311292219,1705031433193,-9252.6684,0.00032123,2]
[311292220,1705031433205,-1399.78553708,0.00032123,2]
[311292224,1705031438024,-523.73272136,0.00032123,2]
[311292228,1705031438085,-39579.56391072,0.00032123,2]
[311292229,1705031438095,-251.07,0.00032176,2]
[311292230,1705031438104,-165.58,0.0003218,2]
[311292231,1705031438113,-327.42760564,0.00032223,2]
[311292232,1705031438122,-504.758,0.00032223,2]
[311292233,1705031438131,-100000.0,0.00032223,2]
[311292234,1705031438140,-634.703,0.00032323,2]
[311292235,1705031438150,-304.164,0.00032323,2]
[311292236,1705031438159,-318.0,0.00032323,2]
[311292237,1705031438168,-19678.0,0.00032323,2]
[311292238,1705031438177,-2901.0,0.00032323,2]
[311292239,1705031438186,-2270.0,0.00032323,2]
[311292240,1705031438196,-1028.0,0.00032323,2]
[311292241,1705031438205,-384.30901785,0.0003241,2]
[311292242,1705031438214,-155.43,0.00032448,2]
[311292243,1705031438223,-194.39,0.00032703,2]
[311292244,1705031438233,-153.84,0.00032877,2]
[311292245,1705031438242,-583.3,0.00032877,15]
[311292246,1705031438252,-750.0,0.00033,3]
[311292247,1705031438261,-384.30901785,0.00033036,2]
[311292248,1705031438270,-520.01850677,0.00033125,2]
[311292249,1705031438280,-1000.0,0.00033437,2]
[311292250,1705031438290,-384.30901785,0.00033663,2]
[311292251,1705031438299,-153.84,0.0003379,2]
[311292252,1705031438309,-201.68969247,0.00034,2]
[311292253,1705031438318,-1000.0,0.00034,4]
[311292254,1705031438327,-167.92,0.00034178,2]
[311292255,1705031438337,-268.855635,0.00034257,10]
[311292256,1705031438346,-800.0,0.00034257,5]
[311292257,1705031438356,-384.30901785,0.00034289,2]
[311292258,1705031438365,-205.0,0.00034429,2]
[311292259,1705031438374,-251.07,0.0003444,2]
[311292260,1705031438384,-520.01850677,0.0003445,2]
[311292261,1705031438393,-680.554871,0.0003452,2]
[311292262,1705031438402,-155.05,0.00034521,2]
[311292263,1705031438411,-19881.8857,0.0003455,2]
[311292264,1705031438420,-213.6266,0.0003455,2]
[311292265,1705031438429,-180.0,0.00034658,2]
[311292266,1705031438439,-153.84,0.00034703,2]
[311292267,1705031438448,-1020.832307,0.00034794,2]
[311292268,1705031438458,-1000.0,0.0003489,2]
[311292269,1705031438466,-2570.3993,0.000349,2]
[311292270,1705031438476,-151.35039787,0.000349,2]
[311292271,1705031438485,-1008.92938215,0.000349,2]
[311292272,1705031438494,-206.7009,0.000349,2]
[311292273,1705031438503,-14346.99,0.000349,2]
[311292274,1705031438512,-14347.0,0.000349,2]
[311292275,1705031438523,-384.30901785,0.00034916,2]
[311292276,1705031438534,-1361.109743,0.00034931,2]
[311292277,1705031438543,-255.47708732,0.00035,4]
[311292278,1705031438553,-2500.0,0.00035,2]
[311292279,1705031438562,-1804.81442942,0.00035,4]
[311292280,1705031438571,-67743.27987898,0.00035,2]
[311292281,1705031438584,-564800.72650691,0.00035,2]
[311292282,1705031438599,-358.80485444,0.00035,2]
[311292283,1705031438609,-2763.99533157,0.00035,2]
[311292284,1705031438654,-520.15843957,0.00035,2]
[311292285,1705031438666,-4331.82928956,0.00035,2]
[311292286,1705031438694,-961.40654544,0.00035,2]
[311292287,1705031438716,-566.82515171,0.00035,2]
[311292288,1705031440514,-286.83677164,0.00035,2]
[311292290,1705031440526,-1466.08782232,0.00035,2]
[311292291,1705031440576,-763.2575711,0.00035,2]
[311292292,1705031440587,-355.12996767,0.00035,2]
[311292293,1705031440598,-323.67102557,0.00035,2]
[311292294,1705031440609,-18282.57030443,0.00035,2]
[311292295,1705031440639,-208.99,0.0003,2]
[311292296,1705031440648,-151.22,0.00035,2]
[311292297,1705031441229,-668.16681472,0.00035,2]
[311292298,1705031441292,-1710.46949972,0.00035,2]
[311292299,1705031441304,-469.50000035,0.00035,2]
[311292300,1705031441352,-309.04679903,0.00035,2]
[311292301,1705031441364,-2681.98083323,0.00035,2]
[311292302,1705031441379,-4660.78742451,0.00035,2]
[311292303,1705031441418,-296.60485416,0.00035,2]
[311292304,1705031441430,-856.53874824,0.00035,2]
[311292305,1705031443096,-786.06907866,0.000318,2]
[311292306,1705031443108,-4347.98,0.000318,2]
[311292307,1705031443268,-1878.62261466,0.000318,2]
[311292308,1705031443280,-444.00954633,0.000318,2]
[311292309,1705031443326,-330.23400921,0.000318,2]
[311292310,1705031443338,-11213.67795114,0.000318,2]
[311292311,1705031443347,-1989.87452581,0.00035,2]
[311292312,1705031443387,-765.64397858,0.00035,2]
[311292313,1705031446431,-204.14,0.0003499,10]
[311292314,1705031446440,-162.21361845,0.00034999,4]
[311292315,1705031446450,-15744.84638155,0.00034999,4]
[311292316,1705031446462,-408.1979072,0.00034999,4]
[311292317,1705031446473,-911.93480158,0.00034999,4]
[311292318,1705031448806,-155.0,0.00034989,2]
[311292319,1705031448816,-661.09600914,0.00034999,4]
[311292320,1705031448825,-6653.18696847,0.00034999,2]
[311292321,1705031448869,-844.24158035,0.00034999,2]
[311292322,1705031448932,-15933.0428259,0.00034999,2]
[311292323,1705031448943,-3466.69759647,0.00034999,2]
[311292324,1705031469918,13713.65263694,0.00023,2]
[311292325,1705031538739,151.40112,0.000225,2]
[311292326,1705031541744,151.40112,0.000225,2]
[311292327,1705031556185,151.40112,0.000225,2]
[311292328,1705031556843,151.40112,0.000225,2]
[311292329,1705031557451,151.40112,0.000225,2]
[311292330,1705031558102,151.40112,0.000225,2]
[311292331,1705031558749,151.40112,0.000225,2]
[311292332,1705031559333,151.40112,0.000225,2]
[311292333,1705031559957,151.40112,0.000225,2]
[311292334,1705031560560,151.40112,0.000225,2]
[311292335,1705031561226,151.40112,0.000225,2]
[311292336,1705031561772,151.40112,0.000225,2]
[311292337,1705031562362,151.40112,0.000225,2]
[311292338,1705031562986,151.40112,0.000225,2]
[311292339,1705031563640,151.40112,0.000225,2]
[311292340,1705031564341,151.40112,0.000225,2]
[311292341,1705031565000,151.40112,0.000225,2]
[311292342,1705031565561,151.40112,0.000225,2]
[311292343,1705031566031,151.40112,0.000225,2]
[311292344,1705031566604,151.40112,0.000225,2]
[311292345,1705031567193,151.40112,0.000225,2]
[311292346,1705031567821,151.40112,0.000225,2]
[311292347,1705031568417,151.40112,0.000225,2]
[311292348,1705031568960,151.40112,0.000225,2]
[311292349,1705031569533,151.40112,0.000225,2]
[311292350,1705031570076,151.40112,0.000225,2]
[311292351,1705031570627,151.40112,0.000225,2]
[311292352,1705031571575,151.40112,0.000225,2]
[311292353,1705031571860,151.40112,0.000225,2]
[311292354,1705031572367,151.40112,0.000225,2]
[311292355,1705031572922,151.40112,0.000225,2]
[311292356,1705031573519,151.40112,0.000225,2]
[311292357,1705031574191,151.40112,0.000225,2]
[311292358,1705031574752,151.40112,0.000225,2]
[311292359,1705031651020,164.25,0.00022173,2]
[311292360,1705031705388,184.32,0.00021839,2]
[311292361,1705031751636,359.29,0.00019916,2]
[311292362,1705031751956,359.29,0.0002218,2]
[311292363,1705031963218,350.99,0.00021809,2]
[311292365,1705032057867,161.14,0.00021963,2]
[311292366,1705032058068,161.14,0.00022106,2]
[311292367,1705032058315,161.14,0.00022249,2]
[311292368,1705032058486,161.14,0.00022392,2]
[311292369,1705032174783,158.88,0.00021776,2]
[311292370,1705032174988,158.88,0.0002189,2]
[311292371,1705032175217,158.88,0.00022005,2]
[311292372,1705032175448,158.88,0.00022119,2]
[311292373,1705032175665,158.88,0.00022234,2]
[311292374,1705032175859,158.88,0.00022349,2]
[311292375,1705032175887,323.36,0.00019863,2]
[311292376,1705032176196,323.36,0.00022127,2]
[311292377,1705032176274,158.88,0.00022463,2]
[311292378,1705032323716,190.81005512,0.000225,2]
[311292379,1705032324326,698.47028769,0.000225,2]
[311292380,1705032326956,279.00084549,0.000225,2]
[311292381,1705032329658,155.0,0.000225,2]
[311292382,1705032332822,4267.19887316,0.000225,2]
[311292383,1705032335742,155.0,0.000225,2]
[311292384,1705032343199,417.6160908,0.000225,2]
[311292385,1705032344501,5272.44162638,0.000225,2]
[311292386,1705032345320,694.71140313,0.000225,2]
[311292387,1705032345410,1254.8177837,0.000225,2]
[311292388,1705032346490,581.20878146,0.000225,2]
[311292389,1705032347785,403.85382049,0.000225,2]
[311292390,1705032347948,630.11452839,0.000225,2]
[311292391,1705032348657,2317.09975572,0.000225,2]
[311292392,1705032350986,155.0,0.000225,2]
[311292393,1705032354530,384.17527737,0.000225,2]
[311292394,1705032354706,155.0,0.000225,2]
[311292395,1705032356387,242.20345528,0.000225,2]
[311292396,1705032359143,758.05412483,0.000225,2]
[311292397,1705032360681,2617.16595295,0.000225,2]
[311292398,1705032361710,300.0,0.000225,2]
[311292399,1705032362005,558.15325618,0.000225,2]
[311292400,1705032362213,150.0,0.000225,2]
[311292401,1705032362251,150.0,0.000225,2]
[311292402,1705032363638,376.44759867,0.000225,2]
[311292403,1705032365767,155.0,0.000225,2]
[311292404,1705032366100,33719.15430606,0.000225,2]
[311292405,1705032370009,1656.42293049,0.000225,2]
[311292406,1705032370333,214.91665787,0.000225,2]
[311292407,1705032374809,527.27935019,0.000225,2]
[311292408,1705032379635,699.9688,0.00022389,2]
[311292409,1705032386375,11667.66899712,0.000225,2]
[311292410,1705032390467,1000.0,0.00021782,2]
[311292411,1705032402250,190.81005512,0.000225,2]
[311292412,1705032407610,132287.62096423,0.000225,2]
[311292413,1705032417552,346.67900452,0.0002247,2]
[311292414,1705032429857,694.71140313,0.000225,2]
[311292415,1705032439124,-155.22863579,0.00022501,2]
[311292416,1705032450126,10513.08241403,0.000225,2]
[311292417,1705032450173,164.65516803,0.000225,2]
[311292418,1705032460874,4482.56051579,0.000225,2]
[311292419,1705032467335,4324.48153211,0.000225,2]
[311292420,1705032471623,1427.40182184,0.000225,2]